Workbook

Sheet ELEM
A1: DEPARTMENT OF EDUCATION
A2: Region X– Northern Mindanao
A3: DIVISION OF MALAYBALAY CITY
A4: Sayre Highway, Purok 6, Casisang,
A5: Malaybalay City, Bukidnon
A7: SCHOOL OPERATING BUDGET
A8: SCHOOL MAINTENANCE AND OTHER OPERATING EXPENSES
A9: For Calendar Year 2018
A11: School: | B11: X | E11: Allocation: | G11: 287000
A12: District: | B12: X
A14: OBJECT OF EXPENDITURE | C14: UACS CODE | E14: AMOUNT
D15: Percentage | E15: Per NEP 2018 | F15: Actual 2017 | G15: Proposed 2018
A16: Traveling Expenses
B17: Traveling Expenses - Local | C17: 5-02-01-010-00 | D17: 0.03684256206 | E17: =$G$11*D17 -> 10573.81531
A18: Training and Scholarship Expenses
B19: Training Expenses | C19: 5-02-02-010-00 | D19: 0.07915292484 | E19: =$G$11*D19 -> 22716.88943
B20: ICT Training Expenses | C20: 5-02-02-010-01
A21: Supplies and Materials Expenses
B22: ICT Office Supplies Expenses | C22: 5-02-03-010-01 | F22: 1
B23: Office Supllies Expenses | C23: 5-02-03-010-00 | D23: 0.3776254123 | E23: =$G$11*D23 -> 108378.4933
B24: Accountable Forms Expenses | C24: 5-02-03-020-00 | E24: =$G$11*D24 -> 0
B25: Food Supplies Expenses | C25: 5-02-03-050-00
B26: Drugs and Medicines Expenses | C26: 5-02-03-070-00 | D26: 0.03258982815 | E26: =$G$11*D26 -> 9353.28068
B27: Medical, Dental and Laboratory Supplies Expenses | C27: 5-02-03-080-00
B28: Fuel, Oil and Lubricants Expenses | C28: 5-02-03-090-00 | D28: 0.001171671585 | E28: =$G$11*D28 -> 336.2697448
B29: Semi-Expendable Machinery Expenses | C29: 5-02-03-210-01
B30: Semi-Expendable Office Equipment Expenses | C30: 5-02-03-210-02
B31: Semi-Expendable ICT Equipment Expenses | C31: 5-02-03-210-03
B32: Semi-Expendable Printing Equipment Expenses | C32: 5-02-03-210-11
B33: Semi-Expendable Sports Equipment Expenses | C33: 5-02-03-210-12
B34: Semi-Expendable Furniture and Fixtures Expenses | C34: 5-02-03-220-01
B35: Semi-Expendable Other Machinery and Equipment | C35: 5-02-03-210-99
B36: Other Supplies Expenses | C36: 5-02-03-990-00 | D36: 0.06613435168 | E36: =$G$11*D36 -> 18980.55893
A37: Utility Expenses
B38: Water Expenses | C38: 5-02-04-010-00 | D38: 0.0248220795 | E38: =$G$11*D38 -> 7123.936817
B39: Electricity Expenses | C39: 5-02-04-020-00 | D39: 0.05632702656 | E39: =$G$11*D39 -> 16165.85662
A40: Communication Expenses
B41: Postage and Courier Services | C41: 5-02-05-010-00 | E41: =$G$11*D41 -> 0
B42: Telephone Expenses-Mobile | C42: 5-02-05-020-00 | D42: 0.01301857316 | E42: =$G$11*D42 -> 3736.330498
B43: Telephone Expenses-Landline | C43: 5-02-05-020-02 | D43: 0.01944106926 | E43: =$G$11*D43 -> 5579.586877
B44: Internet Expenses | C44: 5-02-05-030-00 | D44: 0.1333101892 | E44: =$G$11*D44 -> 38260.0243
A45: General Services
B46: Janitorial Services | C46: 5-02-12-020-00 | D46: 0.01601284499 | E46: =$G$11*D46 -> 4595.686513
B47: Security Services | C47: 5-02-12-030-00 | D47: 0.04105190071 | E47: =$G$11*D47 -> 11781.8955
A48: Repairs and Maintenance
B49: Repairs and Maintenance-Buildings and Other Structures | E49: =$G$11*D49 -> 0
B50: Repairs and Maintenance- Buildings | C50: 5-02-13-040-01 | E50: 0
B51: Repairs and Maintenance-School Buildings | C51: 5-02-13-040-02 | D51: 0.07741711508 | E51: 22218.71203
B52: Repairs and Maintenance-Machinery and Equipment | E52: 0
B53: Repairs and Maintenance- Machinery | C53: 5-02-13-050-01 | E53: 0
B54: Repairs and Maintenance- Office Equipment | C54: 5-02-13-050-02 | D54: 0.005945148412 | E54: 1706.257594
B55: Repairs and Maintenance- ICT Equipment | C55: 5-02-13-050-03 | D55: 0.002603714633 | E55: 747.2660996
B56: Repairs and Maintenance- Printing Equipment | C56: 5-02-13-050-12
B57: Repairs and Maintenance - Furniture and Fixtures | C57: 5-02-13-070-00 | D57: 0.001822600243 | E57: =$G$11*D57 -> 523.0862697
A58: Taxes, Insurance Premiums and Other Fees
B59: Fidelity Bond Premiums | C59: 5-02-15-020-00 | D59: 0.007594167679 | E59: =$G$11*D59 -> 2179.526124
A60: Labor and Wages
B61: Labor and Wages | C61: 5-02-16-010-00 | D61: 0.0002603714633 | E61: =$G$11*D61 -> 74.72660996
A62: Other Maintenance and Operating Expenses
B63: Printing and Publication Expenses | C63: 5-02-99-020-00 | D63: 0.006856448533 | E63: =$G$11*D63 -> 1967.800729
B64: Subscriptions Expenses | C64: 5-02-99-070-00 | E64: =$G$11*D64 -> 0
A65: GRAND TOTAL | D65: =SUM(D17:D64) -> 1 | E65: =SUM(E17:E64) -> 287000 | F65: =SUM(F17:F64) -> 1 | G65: =SUM(G16:G64) -> 0
B67: Prepared by:
B69: sd
B70: SCHOOL HEAD
B72: Certified Allotment Available:
B75: SIBYL L. MAPUTI
B76: Administrative Officer V
B78: APPROVED:
B81: REBONFAMIL R. BAGUIO
B82: Schools Division Superintendent

Sheet HS
A1: DEPARTMENT OF EDUCATION
A2: Region X– Northern Mindanao
A3: DIVISION OF MALAYBALAY CITY
A4: Sayre Highway, Purok 6, Casisang,
A5: Malaybalay City, Bukidnon
A7: SCHOOL OPERATING BUDGET
A8: SCHOOL MAINTENANCE AND OTHER OPERATING EXPENSES
A9: For Calendar Year 2018
A11: School: | B11: S | D11: Allocation: | F11: 90
A12: District: | B12: S
A14: OBJECT OF EXPENDITURE | C14: UACS CODE | D14: AMOUNT
D15: Per NEP 2018 | E15: Actual 2017 | F15: Proposed 2018
A16: Traveling Expenses
B17: Traveling Expenses - Local | C17: 5-02-01-010-00
A18: Training and Scholarship Expenses
B19: Training Expenses | C19: 5-02-02-010-00
B20: ICT Training Expenses | C20: 5-02-02-010-01
A21: Supplies and Materials Expenses
B22: ICT Office Supplies Expenses | C22: 5-02-03-010-01
B23: Office Supllies Expenses | C23: 5-02-03-010-00
B24: Accountable Forms Expenses | C24: 5-02-03-020-00
B25: Food Supplies Expenses | C25: 5-02-03-050-00
B26: Drugs and Medicines Expenses | C26: 5-02-03-070-00
B27: Medical, Dental and Laboratory Supplies Expenses | C27: 5-02-03-080-00
B28: Fuel, Oil and Lubricants Expenses | C28: 5-02-03-090-00
B29: Semi-Expendable Machinery Expenses | C29: 5-02-03-210-01
B30: Semi-Expendable Office Equipment Expenses | C30: 5-02-03-210-02
B31: Semi-Expendable ICT Equipment Expenses | C31: 5-02-03-210-03
B32: Semi-Expendable Printing Equipment Expenses | C32: 5-02-03-210-11
B33: Semi-Expendable Sports Equipment Expenses | C33: 5-02-03-210-12
B34: Semi-Expendable Furniture and Fixtures Expenses | C34: 5-02-03-220-01
B35: Semi-Expendable Other Machinery and Equipment | C35: 5-02-03-210-99
B36: Other Supplies Expenses | C36: 5-02-03-990-00
A37: Utility Expenses
B38: Water Expenses | C38: 5-02-04-010-00
B39: Electricity Expenses | C39: 5-02-04-020-00
A40: Communication Expenses
B41: Postage and Courier Services | C41: 5-02-05-010-00
B42: Telephone Expenses-Mobile | C42: 5-02-05-020-00
B43: Telephone Expenses-Landline | C43: 5-02-05-020-02
B44: Internet Expenses | C44: 5-02-05-030-00
A45: General Services
B46: Janitorial Services | C46: 5-02-12-020-00
B47: Security Services | C47: 5-02-12-030-00
A48: Repairs and Maintenance
B49: Repairs and Maintenance-Buildings and Other Structures
B50: Repairs and Maintenance- Buildings | C50: 5-02-13-040-01
B51: Repairs and Maintenance-School Buildings | C51: 5-02-13-040-02
B52: Repairs and Maintenance-Machinery and Equipment
B53: Repairs and Maintenance- Machinery | C53: 5-02-13-050-01
B54: Repairs and Maintenance- Office Equipment | C54: 5-02-13-050-02
B55: Repairs and Maintenance- ICT Equipment | C55: 5-02-13-050-03
B56: Repairs and Maintenance- Printing Equipment | C56: 5-02-13-050-12
B57: Repairs and Maintenance - Furniture and Fixtures | C57: 5-02-13-070-00
A58: Taxes, Insurance Premiums and Other Fees
B59: Fidelity Bond Premiums | C59: 5-02-15-020-00
A60: Labor and Wages
B61: Labor and Wages | C61: 5-02-16-010-00
A62: Other Maintenance and Operating Expenses
B63: Printing and Publication Expenses | C63: 5-02-99-020-00
B64: Subscriptions Expenses | C64: 5-02-99-070-00
A65: GRAND TOTAL | D65: =SUM(D17:D64) -> 0 | E65: =SUM(E17:E64) -> 0 | F65: =SUM(F16:F64) -> 0
B67: Prepared by:
B69: sd
B70: SCHOOL HEAD
B72: Certified Allotment Available:
B75: SIBYL L. MAPUTI
B76: Administrative Officer V
B78: APPROVED:
B81: REBONFAMIL R. BAGUIO
B82: Schools Division Superintendent
